fUSD/lending_fUSD_20260309
["ID","MTS","AMOUNT","RATE_DAILY","PERIOD"]
[408056934,1773082232100,-500.0,0.00018356,7]
[408056935,1773082232109,-160.0,0.000184,2]
[408056936,1773082232118,-847.0,0.000184,2]
[408056937,1773082232127,-779.7,0.00018428,2]
[408056938,1773082232136,-942.35005915,0.0001847,2]
[408056939,1773082232145,-150.0,0.0001852,2]
[408056940,1773082232154,-1000.0,0.00018564,2]
[408056941,1773082232163,-182.07748403,0.00018597,2]
[408056942,1773082232172,-1500.0,0.00018656,2]
[408056943,1773082232181,-168.0,0.00018665,2]
[408056944,1773082232190,-942.35005915,0.00018685,2]
[408056945,1773082232199,-168.0,0.00018703,2]
[408056946,1773082232209,-514.00912317,0.00018709,2]
[408056947,1773082232218,-275.25252548,0.00018709,2]
[408056948,1773082232227,-2806.0,0.0001872,2]
[408056949,1773082232236,-2806.0,0.0001872,2]
[408056950,1773082232245,-502.0,0.000188,3]
[408056951,1773082232254,-942.35005915,0.00018899,2]
[408056952,1773082232263,-150.0,0.00018999,2]
[408056953,1773082232272,-160.24329577,0.00019014,2]
[408056954,1773082232281,-168.0,0.00019018,2]
[408056955,1773082232290,-2660.0,0.0001904,2]
[408056956,1773082232299,-844.0,0.0001904,2]
[408056957,1773082232308,-1000.0,0.00019112,2]
[408056958,1773082232317,-168.0,0.00019116,2]
[408056959,1773082232326,-160.24329577,0.00019123,2]
[408056960,1773082232335,-307.70823868,0.00019132,2]
[408056961,1773082232344,-168.0,0.00019135,2]
[408056962,1773082232353,-695.21,0.00019178,2]
[408056963,1773082232363,-1000.0,0.00019178,2]
[408056964,1773082232372,-2000.0,0.000192,2]
[408056965,1773082232381,-322.0,0.00019224,2]
[408056966,1773082232392,-160.24329577,0.00019233,2]
[408056967,1773082232401,-847.0,0.0001936,2]
[408056968,1773082232410,-160.24329577,0.0001937,2]
[408056969,1773082232419,-500.0,0.00019452,7]
[408056970,1773082232429,-533.97773685,0.00019452,2]
[408056971,1773082232441,-460.51348595,0.00019452,2]
[408056972,1773082232452,-5.5087772,0.00019452,2]
[408056973,1773082232461,-278.0,0.00019461,2]
[408056974,1773082232470,-160.24329577,0.00019479,2]
[408056975,1773082232479,-225.0,0.00019523,2]
[408056976,1773082232488,-160.24329577,0.00019589,2]
[408056977,1773082232497,-2.65420997,0.000196,2]
[408056978,1773082232508,-443.91101641,0.000196,2]
[408056979,1773082232517,-47.46921376,0.0001966,2]
[408056980,1773082232527,-952.53078624,0.0001966,2]
[408056981,1773082232537,-150.0,0.00019673,2]
[408056982,1773082232546,-500.0,0.00019673,2]
[408056983,1773082232555,-122.46921376,0.00019673,2]
[408056984,1773082232567,-377.53078624,0.00019673,2]
[408056985,1773082232576,-493.0,0.00019673,2]
[408056986,1773082232585,-150.0,0.00019673,2]
[408056987,1773082232594,-500.0,0.00019673,2]
[408056988,1773082232604,-150.0,0.00019673,2]
[408056989,1773082232613,-150.0,0.00019673,2]
[408056990,1773082232622,-89.15320748,0.00019673,2]
[408056991,1773082232634,-60.84679252,0.00019673,2]
[408056992,1773082232643,-500.0,0.00019673,2]
[408056993,1773082232652,-150.0,0.00019673,2]
[408056994,1773082232662,-12.90320248,0.00019673,2]
[408056995,1773082232673,-487.09679752,0.00019673,2]
[408056996,1773082232682,-14.43061229,0.00019673,2]
[408056997,1773082232693,-485.56938771,0.00019673,2]
[408056998,1773082232703,-150.0,0.00019673,2]
[408056999,1773082232712,-500.0,0.00019673,2]
[408057000,1773082232721,-150.0,0.00019673,2]
[408057001,1773082232730,-714.43061229,0.0001968,2]
[408057002,1773082232741,-2091.56938771,0.0001968,2]
[408057003,1773082232751,-847.0,0.0001968,2]
[408057004,1773082232760,-1000.0,0.00019699,2]
[408057005,1773082232770,-1606.15273748,0.000197,2]
[408057006,1773082232779,-2500.0,0.000197,2]
[408057007,1773082232789,-587.0,0.00019703,2]
[408057008,1773082232798,-172.87392778,0.00019704,2]
[408057009,1773082232807,-160.0,0.00019704,2]
[408057010,1773082232817,-1606.15273742,0.00019722,2]
[408057011,1773082232826,-372.64,0.00019726,2]
[408057012,1773082232835,-160.24329577,0.00019726,2]
[408057013,1773082232845,-1000.0,0.00019726,2]
[408057014,1773082232855,-150.0,0.00019728,2]
[408057015,1773082232864,-500.0,0.00019728,2]
[408057016,1773082232874,-500.0,0.00019728,2]
[408057017,1773082232883,-493.0,0.00019728,2]
[408057018,1773082232892,-500.0,0.00019728,2]
[408057019,1773082232902,-150.0,0.00019728,2]
[408057020,1773082232912,-130.02858772,0.00019728,2]
[408057021,1773082232926,-19.97141228,0.00019728,2]
[408057022,1773082232936,-150.0,0.00019728,2]
[408057023,1773082232946,-314.58649103,0.00019728,2]
[408057027,1773082237987,-185.41350897,0.00019728,2]
[408057028,1773082237997,-150.0,0.00019728,2]
[408057029,1773082238007,-500.0,0.00019728,2]
[408057030,1773082238016,-500.0,0.00019728,2]
[408057031,1773082238025,-150.0,0.00019728,2]
[408057032,1773082238034,-500.0,0.00019728,2]
[408057033,1773082238044,-150.0,0.00019728,2]
[408057034,1773082238053,-1606.15273742,0.00019744,2]
[408057035,1773082238063,-1606.15273742,0.00019767,2]
[408057036,1773082238071,-138.90238757,0.00019783,2]
[408057060,1773082240074,-323.20341886,0.00019783,2]
[408057061,1773082240288,-37.89419357,0.00019783,2]
[408057062,1773082240298,-551.70358089,0.00019783,2]
[408057063,1773082240307,-493.0,0.00019783,2]
[408057064,1773082240317,-500.0,0.00019783,2]
[408057065,1773082240326,-150.0,0.00019783,2]
[408057066,1773082240335,-150.0,0.00019783,2]
[408057067,1773082240344,-150.0,0.00019783,2]
[408057068,1773082240353,-500.0,0.00019783,2]
[408057069,1773082240362,-500.0,0.00019783,2]
[408057070,1773082240372,-500.0,0.00019783,2]
[408057071,1773082240382,-150.0,0.00019783,2]
[408057072,1773082240391,-525.0,0.00019783,2]
[408057073,1773082240401,-150.0,0.00019783,2]
[408057074,1773082240410,-1606.15273742,0.00019789,2]
[408057075,1773082240419,-322.0,0.00019795,2]
[408057076,1773082240429,-70874.1942,0.000198,2]
[408057077,1773082240438,-54197.817,0.000198,2]
[408057078,1773082240447,-2000.0,0.000198,2]
[408057079,1773082240456,-2000.0,0.000198,2]
[408057080,1773082240465,-954.85520151,0.000198,2]
[408057081,1773082240474,-152.18884354,0.00019804,2]
[408057082,1773082240484,-472.11644099,0.00019804,2]
[408057083,1773082240493,-1606.15273742,0.00019811,2]
[408057084,1773082240503,-500.0,0.00019813,2]
[408057085,1773082240513,-954.85520149,0.00019814,2]
[408057086,1773082240522,-180.39,0.00019823,2]
[408057087,1773082240531,-954.85520149,0.00019829,2]
[408057088,1773082240540,-173.515,0.00019833,2]
[408057089,1773082240549,-2763.538,0.00019833,2]
[408057090,1773082240559,-1606.15273742,0.00019833,2]
[408057091,1773082240568,-160.24329577,0.00019836,2]
[408057092,1773082240577,-500.0,0.00019837,2]
[408057093,1773082240587,-493.0,0.00019837,2]
[408057094,1773082240596,-500.0,0.00019837,2]
[408057095,1773082240605,-150.0,0.00019837,2]
[408057096,1773082240614,-500.0,0.00019837,2]
[408057097,1773082240623,-343.0,0.00019837,2]
[408057098,1773082240632,-500.0,0.00019837,2]
[408057099,1773082240642,-150.0,0.00019837,2]
[408057100,1773082240651,-150.0,0.00019837,2]
[408057101,1773082240661,-776.69281377,0.0001984,2]
[408057102,1773082240670,-954.85520149,0.00019843,2]
[408057103,1773082240680,-1000.0,0.00019843,2]
[408057104,1773082240689,-1606.15273742,0.00019856,2]
[408057105,1773082240698,-954.85520149,0.00019857,2]
[408057106,1773082240708,-749.73194651,0.00019861,2]
[408057107,1773082240717,-500.0,0.00019864,2]
[408057108,1773082240726,-500.0,0.00019864,2]
[408057109,1773082240736,-500.0,0.00019864,2]
[408057110,1773082240745,-500.0,0.00019864,2]
[408057111,1773082240756,-289.3873478,0.00019864,2]
[408057112,1773082240765,-500.0,0.00019864,2]
[408057113,1773082240774,-500.0,0.00019864,2]
[408057114,1773082240784,-503.55073109,0.00019864,2]
[408057115,1773082240793,-500.0,0.00019864,2]
[408057116,1773082240803,-177.14945896,0.00019864,2]
[408057117,1773082240813,-500.0,0.00019864,2]
[408057118,1773082240822,-500.0,0.00019864,2]
[408057119,1773082240831,-250.0,0.00019871,2]
[408057120,1773082240841,-954.85520149,0.00019871,2]
[408057121,1773082240851,-1606.15273742,0.00019878,2]
[408057122,1773082240860,-151.0,0.00019885,2]
[408057123,1773082240870,-954.85520149,0.00019886,2]
[408057124,1773082240879,-419.04,0.0001989,2]
[408057125,1773082240888,-509.58,0.00019891,2]
[408057126,1773082240897,-500.0,0.00019891,2]
[408057127,1773082240907,-500.0,0.00019891,2]
[408057128,1773082240918,-5800.0,0.00019892,2]
[408057129,1773082240931,-500.0,0.00019892,2]
[408057130,1773082240940,-493.0,0.00019892,2]
[408057131,1773082240951,-500.0,0.00019892,2]
[408057132,1773082240962,-150.0,0.00019892,2]
[408057133,1773082240971,-500.0,0.00019892,2]
[408057134,1773082240980,-500.0,0.00019892,2]
[408057135,1773082240990,-150.0,0.00019892,2]
[408057136,1773082240999,-150.0,0.00019892,2]
[408057137,1773082241007,-250.0,0.00019897,2]
[408057138,1773082241017,-500.0,0.00019899,2]
[408057139,1773082241027,-500.0,0.00019899,2]
[408057140,1773082241036,-500.0,0.00019899,2]
[408057141,1773082241045,-500.0,0.00019899,2]
[408057142,1773082241054,-5388.69595932,0.00019899,2]
[408057143,1773082241063,-217.94309222,0.00019899,2]
[408057144,1773082241073,-5388.6959593,0.00019899,2]
[408057145,1773082241082,-5388.6959593,0.00019899,2]
[408057146,1773082241091,-5388.6959593,0.00019899,2]
[408057147,1773082241101,-5388.6959593,0.00019899,2]
[408057148,1773082241110,-5388.6959593,0.000199,2]
[408057149,1773082241120,-5388.6959593,0.000199,2]
[408057150,1773082241129,-5388.6959593,0.000199,2]
[408057151,1773082241139,-5388.6959593,0.000199,2]
[408057152,1773082241149,-5800.0,0.000199,2]
[408057153,1773082241159,-1510.23111655,0.000199,2]
[408057154,1773082241168,-1606.15273742,0.000199,2]
[408057155,1773082241177,-5388.6959593,0.000199,2]
[408057156,1773082241186,-2351.0,0.000199,2]
[408057157,1773082241195,-954.85520149,0.000199,2]
[408057158,1773082241205,-80621.27091197,0.000199,2]
[408057159,1773082241214,-1000.0,0.00019902,2]
[408057160,1773082241224,-500.0,0.00019913,2]
[408057161,1773082241233,-500.0,0.00019913,2]
[408057162,1773082241242,-500.0,0.00019913,2]
[408057163,1773082241251,-500.0,0.00019913,2]
[408057164,1773082241261,-500.0,0.00019913,2]
[408057165,1773082241270,-500.0,0.00019913,2]
[408057166,1773082241279,-500.0,0.00019913,2]
[408057167,1773082241289,-500.0,0.00019913,2]
[408057168,1773082241299,-500.0,0.00019913,2]
[408057169,1773082241308,-250.0,0.00019914,2]
[408057170,1773082241318,-179.0,0.00019915,2]
[408057171,1773082241327,-151.0,0.00019923,2]
[408057172,1773082241336,-2024.0,0.00019947,2]
[408057173,1773082241346,-500.0,0.00019947,2]
[408057174,1773082241355,-493.0,0.00019947,2]
[408057175,1773082241364,-500.0,0.00019947,2]
[408057176,1773082241374,-250.0,0.00019947,2]
[408057177,1773082241383,-500.0,0.00019947,2]
[408057178,1773082241392,-500.0,0.00019947,2]
[408057179,1773082241405,-250.0,0.00019947,2]
[408057180,1773082241416,-250.0,0.00019947,2]
[408057181,1773082241426,-250.0,0.00019947,2]
[408057182,1773082241436,-151.0,0.00019962,2]
[408057183,1773082241448,-1279.0,0.00019963,2]
[408057184,1773082241457,-369.179,0.00019963,2]
[408057185,1773082241467,-414.0,0.00019963,2]
[408057186,1773082241476,-250.0,0.00019968,2]
[408057187,1773082241485,-400.0,0.0001997,2]
[408057188,1773082241494,-400.0,0.0001997,2]
[408057189,1773082241503,-400.0,0.0001997,2]
[408057190,1773082241512,-541.01514806,0.0001997,2]
[408057191,1773082241522,-500.26320598,0.00019973,2]
[408057192,1773082241531,-500.0,0.00019973,2]
[408057193,1773082241540,-500.0,0.00019973,2]
[408057194,1773082241549,-419.04,0.00019989,2]
[408057195,1773082241558,-419.04,0.00019989,2]
[408057196,1773082241567,-419.04,0.00019989,2]
[408057197,1773082241576,-419.04,0.00019989,2]
[408057198,1773082241585,-332.40601749,0.0001999,2]
[408057199,1773082241594,-1242.12037372,0.0001999,2]
[408057200,1773082241604,-1242.12037372,0.0001999,2]
[408057201,1773082241613,-1242.12037372,0.0001999,2]
[408057202,1773082241624,-151.0,0.00019997,2]
[408057203,1773082241633,-500.0,0.00019997,2]
[408057204,1773082241642,-500.0,0.00019997,2]
[408057205,1773082241651,-500.0,0.00019997,2]
[408057206,1773082241660,-500.0,0.00019997,2]
[408057207,1773082241669,-500.0,0.00019997,2]
[408057208,1773082241678,-275.18071975,0.00019997,2]
[408057209,1773082241687,-500.0,0.00019997,2]
[408057210,1773082241698,-500.0,0.00019997,2]
[408057211,1773082241707,-500.0,0.00019997,2]
[408057212,1773082241716,-500.0,0.00019997,2]
[408057213,1773082241725,-500.0,0.00019997,2]
[408057214,1773082241734,-500.0,0.00019997,2]
[408057215,1773082241743,-500.0,0.00019997,2]
[408057216,1773082241752,-500.0,0.00019997,2]
[408057217,1773082241761,-500.0,0.00019997,2]
[408057218,1773082241771,-500.0,0.00019997,2]
[408057219,1773082241780,-551.6,0.00019997,2]
[408057220,1773082241789,-151.0,0.00019997,2]
[408057221,1773082241798,-500.0,0.00019997,2]
[408057222,1773082241807,-602.40025463,0.00019997,2]
[408057223,1773082241816,-509.58,0.00019998,2]
[408057224,1773082241826,-509.58,0.00019998,2]
[408057225,1773082241835,-584.74137557,0.00019998,2]
[408057226,1773082241844,-500.0,0.00019998,2]
[408057227,1773082241853,-500.0,0.00019998,2]
[408057228,1773082241863,-300.0,0.00019999,2]
[408057229,1773082241872,-666.0,0.00019999,2]
[408057230,1773082241881,-300.0,0.00019999,2]
[408057231,1773082241890,-500.0,0.00019999,2]
[408057232,1773082241899,-500.0,0.00019999,2]
[408057233,1773082241908,-500.0,0.00019999,2]
[408057234,1773082241919,-500.0,0.00019999,2]
[408057235,1773082241931,-500.0,0.00019999,2]
[408057236,1773082241941,-500.0,0.00019999,2]
[408057237,1773082241950,-634.4,0.00019999,2]
[408057238,1773082241960,-500.0,0.00019999,2]
[408057239,1773082241979,-500.0,0.00019999,2]
[408057240,1773082241990,-500.0,0.00019999,2]
[408057241,1773082241999,-191.31621318,0.00019999,2]
[408057242,1773082242009,-201.56469632,0.00019999,2]
[408057243,1773082242019,-500.0,0.00019999,2]
[408057244,1773082242028,-500.0,0.00019999,2]
[408057245,1773082242038,-500.0,0.00019999,2]
[408057246,1773082242047,-500.0,0.00019999,2]
[408057247,1773082242057,-500.0,0.00019999,2]
[408057248,1773082242066,-500.0,0.00019999,2]
[408057249,1773082242076,-500.0,0.00019999,2]
[408057250,1773082242085,-546.33,0.00019999,2]
[408057251,1773082242094,-500.0,0.00019999,2]
[408057252,1773082242103,-500.0,0.00019999,2]
[408057253,1773082242112,-500.0,0.00019999,2]
[408057254,1773082242122,-500.0,0.00019999,2]
[408057255,1773082242131,-500.0,0.00019999,2]
[408057256,1773082242141,-500.0,0.00019999,2]
[408057257,1773082242150,-500.0,0.00019999,2]
[408057258,1773082242159,-198.73,0.00019999,2]
[408057259,1773082242168,-500.0,0.00019999,2]
[408057260,1773082242178,-274.9282927,0.00019999,2]
[408057261,1773082242187,-381.48117681,0.00019999,2]
[408057262,1773082242196,-500.0,0.00019999,2]
[408057263,1773082242205,-500.0,0.00019999,2]
[408057264,1773082242215,-500.0,0.00019999,2]
[408057265,1773082242224,-500.0,0.00019999,2]
[408057266,1773082242233,-500.0,0.00019999,2]
[408057267,1773082242242,-500.0,0.00019999,2]
[408057268,1773082242252,-500.0,0.00019999,2]
[408057269,1773082242261,-500.0,0.00019999,2]
[408057270,1773082242271,-500.0,0.00019999,2]
[408057271,1773082242280,-500.0,0.00019999,2]
[408057272,1773082242289,-500.0,0.00019999,2]
[408057273,1773082242299,-500.0,0.00019999,2]
[408057274,1773082242308,-500.0,0.00019999,2]
[408057275,1773082242319,-500.0,0.00019999,2]
[408057276,1773082242329,-500.0,0.00019999,2]
[408057277,1773082242339,-484.28,0.00019999,2]
[408057278,1773082242349,-12230.7247909,0.00019999,2]
[408057279,1773082242359,-500.0,0.00019999,2]
[408057280,1773082242368,-500.0,0.00019999,2]
[408057281,1773082242377,-500.0,0.00019999,2]
[408057282,1773082242387,-500.0,0.00019999,2]
[408057283,1773082242397,-500.0,0.00019999,2]
[408057284,1773082242406,-500.0,0.00019999,2]
[408057285,1773082242415,-32002.3358048,0.00019999,2]
[408057286,1773082242424,-386650.7953705,0.00019999,2]
[408057287,1773082242434,-500.0,0.00019999,2]
[408057288,1773082242443,-500.0,0.00019999,2]
[408057289,1773082242452,-500.0,0.00019999,2]
[408057290,1773082242462,-500.0,0.00019999,2]
[408057291,1773082242471,-500.0,0.00019999,2]
[408057292,1773082242480,-500.0,0.00019999,2]
[408057293,1773082242490,-500.0,0.00019999,2]
[408057294,1773082242500,-42370.1825889,0.00019999,2]
[408057295,1773082242511,-3045.2265316,0.00019999,2]
[408057296,1773082242521,-509.58,0.00019999,2]
[408057297,1773082242530,-509.58,0.00019999,2]
[408057298,1773082242539,-509.58,0.00019999,2]
[408057299,1773082242548,-509.58,0.00019999,2]
[408057300,1773082242558,-509.58,0.00019999,2]
[408057301,1773082242567,-509.58,0.00019999,2]
[408057308,1773082242875,-509.58,0.00019999,2]
[408057309,1773082242893,-509.58,0.00019999,2]
[408057310,1773082242902,-509.58,0.00019999,2]
[408057312,1773082242911,-509.58,0.00019999,2]
[408057313,1773082242923,-509.58,0.00019999,2]
[408057314,1773082242933,-509.58,0.00019999,2]
[408057315,1773082242943,-509.58,0.00019999,2]
[408057316,1773082242952,-509.58,0.00019999,2]
[408057317,1773082242961,-509.58,0.00019999,2]
[408057318,1773082242971,-509.58,0.00019999,2]
[408057319,1773082242980,-509.58,0.00019999,2]
[408057320,1773082242989,-509.58,0.00019999,2]
[408057321,1773082242999,-509.58,0.00019999,2]
[408057322,1773082243009,-509.58,0.00019999,2]
[408057323,1773082243018,-509.778378,0.00019999,2]
[408057324,1773082243027,-500.0,0.00019999,2]
[408057325,1773082243036,-500.0,0.00019999,2]
[408057326,1773082243045,-500.0,0.00019999,2]
[408057327,1773082243054,-500.0,0.00019999,2]
[408057328,1773082243063,-500.0,0.00019999,2]
[408057329,1773082243072,-500.0,0.00019999,2]
[408057330,1773082243081,-500.0,0.00019999,2]
[408057331,1773082243090,-500.0,0.00019999,2]
[408057332,1773082243099,-500.0,0.00019999,2]
[408057333,1773082243108,-500.0,0.00019999,2]
[408057334,1773082243117,-500.0,0.00019999,2]
[408057335,1773082243126,-324.59,0.00019999,2]
[408057336,1773082243135,-316.7036238,0.00019999,2]
[408057337,1773082243144,-500.0,0.00019999,2]
[408057338,1773082243153,-448.88108133,0.00019999,2]
[408057339,1773082243162,-500.0,0.00019999,2]
[408057340,1773082243171,-150.0,0.00019999,2]
[408057341,1773082243181,-185.15269691,0.00019999,2]
[408057342,1773082243190,-575.39190894,0.00019999,2]
[408057343,1773082243199,-150.0,0.00019999,3]
[408057344,1773082243209,-2267.0,0.0002,2]
[408057345,1773082243218,-19765.12345961,0.0002,2]
[408057349,1773082243248,-618.75729086,0.0002,2]
[408057355,1773082245855,-789.895855,0.0002,2]
[408057356,1773082245867,-7665.9081101,0.0002,2]
[408057357,1773082245907,-422.02071339,0.0002,2]
[408057358,1773082245920,-269.70833916,0.0002,2]
[408057359,1773082246070,-254234.10523803,0.0002,2]
[408057364,1773082313780,154.0,0.0002,120]
[408057374,1773082766740,616.03,9.295e-05,2]
[408057375,1773082766960,616.03,9.784e-05,2]
[408057376,1773082767186,616.03,0.00010273,2]
[408057377,1773082767398,616.03,0.00010762,2]
[408057378,1773082767613,616.03,0.00011251,2]
[408057379,1773082767848,616.03,0.0001174,2]
[408057380,1773082768061,616.03,0.0001223,2]
[408057381,1773082768298,616.03,0.00012719,2]
[408057382,1773082768538,616.03,0.00013208,2]
[408057383,1773082768797,616.03,0.00013697,2]
[408057384,1773082819074,-267.0,0.00014186,2]
[408057385,1773082819106,-616.03,0.00014186,2]
[408057386,1773082819135,-222.40395506,0.00014431,2]
[408057387,1773082819164,-616.03,0.00014675,2]
[408057388,1773082819193,-1026.08208988,0.000148,5]
[408057389,1773082819453,-4504.91791012,0.000148,5]
[408057391,1773082905182,-500.0,0.000148,2]
[408057392,1773082905205,-616.03,0.00015165,2]
[408057393,1773082905226,-350.0,0.00015605,2]
[408057394,1773082917407,-250.0,0.00015605,2]
[408057395,1773082917428,-250.0,0.00015605,2]
[408057396,1773082917450,-616.03,0.00015654,2]
[408057399,1773082961408,500.0,9.157e-05,2]
[408057400,1773082962441,500.0,9.157e-05,2]
[408057401,1773082967407,717.74039263,9.157e-05,2]
[408057402,1773082977939,500.0,9.157e-05,2]
[408057403,1773082979208,855.65740375,9.157e-05,2]
[408057404,1773083073055,-300.0,0.00014999,2]
[408057405,1773083073085,-300.0,0.00014999,2]
[408057406,1773083073115,-300.0,0.00014999,2]
[408057407,1773083101223,1200.0,0.00014999,2]
[408057408,1773083101251,300.0,0.00014999,2]
[408057409,1773083162078,300.0,0.00014999,2]
[408057410,1773083163451,300.0,0.00014999,2]
[408057411,1773083221496,300.0,0.00014999,2]
[408057412,1773083238212,500.0,9.999e-05,2]
[408057413,1773083240628,500.0,9.999e-05,2]
[408057414,1773083240772,500.0,9.999e-05,2]
[408057415,1773083243607,500.0,9.999e-05,2]
[408057416,1773083245708,500.0,9.999e-05,2]
[408057417,1773083253987,500.0,9.999e-05,2]
[408057418,1773083254550,813.37257424,9.999e-05,2]
[408057419,1773083341356,300.0,0.00014999,2]
[408057420,1773083360548,172.14,0.00014,2]
[408057421,1773083403580,-300.0,0.00014999,2]
[408057422,1773083403608,-1200.0,0.00014999,2]
[408057439,1773083431975,-500.0,0.00015,30]
[408057440,1773083431984,-500.0,0.00015,30]
[408057441,1773083431994,-500.0,0.00015,30]
[408057443,1773083432003,-500.0,0.00015,30]
[408057445,1773083432012,-500.0,0.00015,30]
[408057447,1773083432021,-500.0,0.00015,30]
[408057449,1773083432030,-500.0,0.00015,30]
[408057451,1773083432040,-500.0,0.00015,30]
[408057452,1773083432049,-500.0,0.00015,30]
[408057453,1773083432059,-500.0,0.00015,30]
[408057454,1773083432068,-1740.55,0.00015392,2]
[408057455,1773083432079,-150.39990835,0.00015654,2]
[408057456,1773083432089,-150.0,0.00015654,2]
[408057457,1773083432098,-201.10564133,0.00015654,2]
[408057458,1773083432108,-616.03,0.00016143,2]
[408057459,1773083432117,-550.0,0.00016199,2]
[408057460,1773083432126,-158944.16656835,0.000162,5]
[408057461,1773083432135,-1783.55152278,0.00016316,2]
[408057462,1773083432144,-420.0,0.00016416,2]
[408057463,1773083432153,-263.27,0.00016499,2]
[408057464,1773083432162,-1680.0,0.00016499,2]
[408057465,1773083432172,-600.0,0.000165,2]
[408057466,1773083432181,-2500.0,0.000165,2]
[408057467,1773083432191,-2500.0,0.000165,2]
[408057468,1773083432201,-2500.0,0.000165,2]
[408057469,1773083432211,-1507.97658717,0.000165,2]
[408057470,1773083432222,-500.0,0.000165,2]
[408057471,1773083432231,-616.03,0.00016632,2]
[408057472,1773083432246,-1783.55152278,0.00016714,2]
[408057473,1773083432257,-502.0,0.00017,2]
[408057474,1773083432267,-501.0,0.00017,2]
[408057475,1773083432277,-1783.55152278,0.00017112,2]
[408057476,1773083432289,-616.03,0.00017121,2]
[408057477,1773083432300,-152.0,0.00017317,3]
[408057478,1773083432310,-569.0,0.00017317,2]
[408057479,1773083432321,-1783.55152278,0.00017511,2]
[408057480,1773083432332,-616.03,0.00017611,2]
[408057481,1773083432341,-500.0,0.00017616,2]
[408057482,1773083432352,-1783.55152278,0.00017909,2]
[408057483,1773083432362,-166.66,0.00017951,2]
[408057484,1773083432371,-587.0,0.00017966,2]
[408057485,1773083432382,-532.89020362,0.00018,2]
[408057486,1773083432391,-2527.91,0.00018021,2]
[408057487,1773083432403,-616.03,0.000181,2]
[408057488,1773083432412,-1000.0,0.00018119,2]
[408057489,1773083432422,-174.61919141,0.00018119,2]
[408057490,1773083432431,-164.88,0.00018142,2]
[408057491,1773083432441,-203.0,0.00018149,2]
[408057492,1773083432452,-727.34173774,0.00018256,2]
[408057493,1773083432462,-1783.55152278,0.00018307,2]
[408057494,1773083432472,-166.66,0.00018329,2]
[408057495,1773083432484,-500.0,0.00018356,7]
[408057496,1773083432496,-500.0,0.00018356,7]
[408057497,1773083432505,-500.0,0.00018356,7]
[408057498,1773083432517,-776.69281377,0.00018423,2]
[408057499,1773083432527,-2527.91,0.00018471,2]
[408057500,1773083432538,-150.0,0.00018588,2]
[408057501,1773083432547,-616.03,0.00018589,2]
[408057502,1773083432557,-1000.0,0.00018667,2]
[408057503,1773083432567,-187.54101157,0.00018667,2]
[408057504,1773083432577,-166.66,0.00018707,2]
[408057505,1773083432586,-150.0,0.00018772,2]
[408057506,1773083432597,-200.0,0.00018784,2]
[408057507,1773083432606,-354.3,0.0001883,2]
[408057508,1773083432618,-259.55,0.00018903,2]
[408057509,1773083432628,-502.0,0.00018909,3]
[408057510,1773083432639,-2527.91,0.00018922,2]
[408057511,1773083432648,-152.0,0.00018988,4]